bitfinex/quotes_ETHUSD_20250804
["timestamp","ask_amount","ask_price","bid_price","bid_amount"]
[1754347311237,0.1336,3723.2,3723.1,2.68693376]
[1754347311448,4.7343,3723.2,3723.1,0.001]
[1754347311653,4.2666,3723.2,3723.1,2.68693376]
[1754347312137,4.7343,3723.2,3723.1,0.001]
[1754347312474,5.163,3723.2,3723.1,0.001]
[1754347313040,4.7343,3723.2,3723.1,0.001]
[1754347313248,4.2666,3723.2,3723.1,0.001]
[1754347313453,4.7343,3723.2,3723.1,0.001]
[1754347313777,5.163,3723.2,3723.1,0.001]
[1754347315250,8.36516162,3723.2,3723.1,0.001]
[1754347316438,5.6793,3723.2,3723.1,0.001]
[1754347316637,5.163,3723.2,3723.1,0.001]
[1754347316872,4.2666,3723.2,3723.1,0.001]
[1754347317578,5.163,3723.2,3723.1,0.001]
[1754347317787,0.4697,3723.9,3723.2,2.6858276]
[1754347317941,4.133,3723.8,3723.3,2.68572055]
[1754347318137,4.133,3723.8,3723.2,0.53729005]
[1754347318138,1.14771419,3723.7,3723.4,2.68570324]
[1754347318374,4.133,3723.6,3723.4,2.68570324]
[1754347318686,4.133,3723.6,3723.5,2.68564522]
[1754347319971,0.002,3723.9,3723.7,2.68550071]
[1754347320171,5.0294,3723.8,3723.6,2.68554958]
[1754347320398,0.002,3723.9,3723.3,2.68578948]
[1754347320550,0.002,3723.9,3723.3,0.32240795]
[1754347320750,4.133,3723.8,3723.7,2.68544382]
[1754347321152,4.6007,3723.8,3723.7,2.68544382]
[1754347322278,4.133,3723.8,3723.7,2.68544382]
[1754347323776,4.6007,3723.8,3723.7,2.68544382]
[1754347324579,0.002,3723.9,3723.1,0.001]
[1754347324768,0.002,3723.9,3723.8,2.68542886]
[1754347324957,5.0304,3723.9,3723.8,2.68542886]
[1754347326273,5.0304,3723.9,3723.7,2.68547376]
[1754347326467,0.8964,3723.8,3723.7,2.68547376]
[1754347327071,4.134,3723.9,3723.8,2.68542886]
[1754347327072,0.002,3723.9,3723.8,2.68542886]
[1754347327371,5.0304,3723.9,3723.8,2.68542886]
[1754347329312,5.0304,3723.9,3723.7,2.68547014]
[1754347329460,5.0304,3723.9,3723.8,2.68542886]
[1754347331199,4.134,3723.9,3723.8,2.68542886]
[1754347331898,0.002,3723.9,3723.8,2.68542886]
[1754347332094,4.133,3723.9,3723.8,2.68542886]
[1754347332396,4.6007,3723.9,3723.8,2.68542886]
[1754347333996,4.133,3723.9,3723.8,2.68542886]
[1754347334215,0.002,3723.9,3723.8,2.68542886]
[1754347334378,4.133,3723.9,3723.8,2.68542886]
[1754347335164,4.6007,3723.9,3723.8,2.68542886]
[1754347335492,5.0294,3723.9,3723.8,2.68542886]
[1754347336491,5.0294,3723.9,3723.7,2.68547542]
[1754347336695,0.9434,3723.8,3723.7,2.68547542]
[1754347338404,0.4793,3723.8,3723.7,2.68547542]
[1754347339000,0.9434,3723.8,3723.7,2.68547542]
[1754347339367,0.9434,3723.8,3723.6,0.1336]
[1754347339569,5.0744,3723.7,3723.5,2.68563829]
[1754347339795,0.9434,3723.6,3723.1,0.001]
[1754347340077,4.13,3723.5,3723.1,0.001]
[1754347340380,5.0734,3723.5,3723.2,3.0]
[1754347340567,0.9434,3723.4,3723.2,3.0]
[1754347340771,5.0734,3723.3,3723.2,3.0]
[1754347341271,5.0734,3723.3,3723.2,2.68586162]
[1754347341720,5.0734,3723.3,3723.1,2.68692733]
[1754347341907,4.13,3723.3,3723.2,3.0]
[1754347342495,5.0734,3723.3,3723.2,3.0]
[1754347343213,5.0734,3723.3,3723.1,3.001]
[1754347343429,5.0734,3723.3,3723.1,0.001]
[1754347343430,0.9434,3723.2,3723.1,0.001]
[1754347347616,4.13,3723.3,3723.1,2.68693376]
[1754347347946,0.4793,3723.2,3723.1,0.001]
[1754347348124,4.13,3723.3,3723.1,0.001]
[1754347348328,4.2636,3723.3,3723.1,0.001]
[1754347348523,5.207,3723.3,3723.1,0.001]
[1754347348711,0.4793,3723.2,3723.1,2.68691494]
[1754347348907,4.2636,3723.3,3723.2,2.68586162]
[1754347349453,4.13,3723.3,3723.2,3.22324752]
[1754347350410,0.1336,3723.6,3723.5,2.68564522]
[1754347350647,0.25139331,3723.7,3723.6,2.6855731]
[1754347350847,4.38139331,3723.7,3723.6,2.6855731]
[1754347351948,4.13,3723.7,3723.6,2.6855731]
[1754347353323,4.13,3723.7,3723.6,3.22269493]
[1754347353948,0.002,3723.8,3723.7,2.68550098]
[1754347354128,0.002,3723.8,3723.7,5.70557748]
[1754347354326,0.002,3723.8,3723.7,5.75150098]
[1754347354527,0.002,3723.8,3723.7,8.27904764]
[1754347355143,0.002,3724.1,3723.8,5.68542886]
[1754347355358,0.002,3724.1,3724.0,15.03831015]
[1754347355665,0.002,3724.1,3724.0,15.17191015]
[1754347355966,0.002,3724.1,3724.0,5.81888464]
[1754347356165,0.002,3724.1,3724.0,7.60352075]
[1754347358063,0.9454,3724.1,3724.0,4.46992075]
[1754347358267,5.0734,3724.1,3724.0,2.68528464]
[1754347359128,5.0734,3724.1,3723.9,2.68533291]
[1754347359331,0.002,3724.1,3724.0,2.68528464]
[1754347359669,0.002,3724.1,3724.0,2.81888464]
[1754347359830,0.002,3724.1,3724.0,3.37646356]
[1754347360598,0.002,3724.1,3724.0,3.42796356]
[1754347360908,0.002,3724.1,3724.0,6.44246356]
[1754347361272,0.002,3724.1,3724.0,10.57046356]
[1754347361611,0.002,3724.9,3724.8,5.6847079]
[1754347361779,0.002,3724.9,3724.8,20.57117593]
[1754347361985,0.002,3724.9,3724.8,20.75627593]
[1754347362718,0.002,3724.9,3724.8,11.35175042]
[1754347364201,0.002,3724.9,3724.8,11.90175042]
[1754347364424,0.002,3724.9,3724.8,12.07524842]
[1754347364598,0.002,3724.9,3724.8,12.06074842]
[1754347365236,0.002,3724.9,3724.8,12.00924842]
[1754347368221,0.002,3724.9,3724.8,7.33124842]
[1754347368399,0.4596,3724.9,3724.8,11.34975042]
[1754347368794,0.002,3724.9,3724.8,11.34975042]
[1754347369000,0.9221,3724.9,3724.8,11.34975042]
[1754347369201,0.9221,3724.9,3724.8,7.22375042]
[1754347369399,0.4596,3724.9,3724.8,7.22375042]
[1754347369624,0.002,3724.9,3724.8,7.22375042]
[1754347370825,0.002,3725.1,3724.8,7.22375042]
[1754347370826,1e-08,3725.1,3724.9,5.68463582]
[1754347371003,1e-08,3725.1,3725.0,10.95782529]
[1754347371204,1e-08,3725.1,3725.0,10.98927158]
[1754347371521,1e-08,3725.1,3725.0,11.12287158]
[1754347371823,1e-08,3725.1,3725.0,11.07137158]
[1754347372747,1e-08,3725.2,3725.1,6.23449169]
[1754347372911,0.002,3726.4,3726.3,2.68362719]
[1754347373115,1e-08,3726.5,3726.4,5.68355517]
[1754347373524,1e-08,3726.5,3726.4,9.80855517]
[1754347373833,1e-08,3726.5,3726.4,10.36613409]
[1754347375057,0.002,3726.9,3726.8,2.68326714]
[1754347375219,1e-08,3727.0,3726.9,5.68319514]
[1754347375420,1e-08,3727.0,3726.9,9.80819514]
[1754347380830,1e-08,3727.0,3726.9,9.80619514]
[1754347381029,1e-08,3727.0,3726.9,11.21163766]
[1754347382364,1e-08,3727.0,3726.9,7.55042329]
[1754347382512,0.92010001,3727.0,3726.9,11.67342329]
[1754347382713,1e-08,3727.0,3726.9,11.20892329]
[1754347382914,1e-08,3727.0,3726.9,7.08592329]
[1754347384114,1e-08,3727.0,3726.9,11.20792329]
[1754347385331,1e-08,3727.0,3726.9,7.08592329]
[1754347385332,0.92010001,3727.0,3726.9,7.08592329]
[1754347385657,0.92010001,3727.0,3726.9,11.20792329]
[1754347386335,1e-08,3727.0,3726.9,11.20792329]
[1754347386752,1e-08,3727.0,3726.9,11.34152329]
[1754347387763,0.92010001,3727.0,3726.9,7.21952329]
[1754347387922,0.92010001,3727.0,3726.9,11.34152329]
[1754347388255,0.92010001,3727.0,3726.9,7.21952329]
[1754347392641,0.92010001,3727.0,3726.9,2.81679514]
[1754347399268,1e-08,3727.0,3726.9,2.81679514]
[1754347399573,0.88100001,3727.0,3726.9,2.81679514]
[1754347400362,1e-08,3727.0,3726.9,2.81679514]
[1754347401564,0.45090001,3727.0,3726.9,2.81679514]
[1754347402488,0.88100001,3727.0,3726.9,2.81679514]
[1754347403650,0.45090001,3727.0,3726.9,3.77880137]
[1754347404197,1e-08,3727.0,3726.9,3.77880137]
[1754347404353,1e-08,3727.0,3726.9,3.79882023]
[1754347404548,1e-08,3727.0,3726.9,3.77880137]
[1754347406456,0.45090001,3727.0,3726.9,3.77880137]
[1754347406678,1e-08,3727.0,3726.9,2.81679514]
[1754347407053,1e-08,3727.0,3726.9,5.888314]
[1754347407386,1e-08,3727.0,3726.9,5.86829514]
[1754347407550,1e-08,3727.0,3726.9,5.81679514]
[1754347408269,1e-08,3727.0,3726.9,5.86829514]
[1754347408590,1e-08,3727.0,3726.9,7.73199137]
[1754347409300,1e-08,3727.0,3726.9,7.68049137]
[1754347409502,1e-08,3727.0,3726.9,7.13049137]
[1754347409795,0.88100001,3727.0,3726.9,0.1346]
[1754347411790,0.88100001,3727.0,3726.9,0.001]
[1754347412160,3.56412316,3727.0,3726.9,0.001]
[1754347412666,3.81539595,3727.0,3726.9,0.001]
[1754347412910,4.46858907,3727.0,3726.9,0.001]
[1754347413264,7.46858907,3727.0,3726.9,0.001]
[1754347415594,8.2512728,3727.0,3726.9,0.001]
[1754347415763,5.00000001,3727.0,3726.9,0.001]
[1754347415965,7.68312316,3727.0,3726.9,0.001]
[1754347416986,10.93395142,3727.0,3726.9,0.001]
[1754347420698,6.56412316,3727.0,3726.9,0.001]
[1754347420900,10.68312316,3727.0,3726.9,0.001]
[1754347421124,0.88100001,3727.0,3726.9,0.001]
[1754347421323,5.00000001,3727.0,3726.9,0.001]
[1754347421924,8.18312316,3727.0,3726.9,0.001]
[1754347425837,7.68312316,3727.0,3726.9,0.001]
[1754347427403,1e-08,3727.0,3726.9,0.001]
[1754347427606,4.11900001,3727.0,3726.9,0.001]
[1754347428343,4.11900001,3727.0,3726.9,2.68419514]
[1754347430922,4.11900001,3727.0,3726.9,2.75019514]
[1754347431242,4.11900001,3727.0,3726.9,3.30690241]
[1754347431449,1e-08,3727.0,3726.9,3.24090241]
[1754347431620,5.06550001,3727.0,3726.9,0.001]
[1754347431808,5.06550001,3727.0,3726.9,2.68419514]
[1754347432206,5.06550001,3727.0,3726.9,0.001]
[1754347432820,4.11900001,3727.0,3726.9,2.68419514]
[1754347433339,5.06550001,3727.0,3726.9,0.001]
[1754347433948,4.11800001,3727.0,3726.9,2.81779514]
[1754347434111,1e-08,3727.0,3726.9,3.36990451]
[1754347438648,1e-08,3727.0,3726.9,3.42140451]
[1754347439570,1e-08,3727.0,3726.9,3.36990451]
[1754347446709,1e-08,3727.0,3726.9,6.91990451]
[1754347446872,1e-08,3727.0,3726.9,6.36990451]
[1754347447184,1e-08,3727.0,3726.9,7.17569851]
[1754347452253,1e-08,3727.0,3726.9,7.22719851]
[1754347452827,1e-08,3727.0,3726.9,7.77719851]
[1754347453027,1e-08,3727.0,3726.9,7.79169851]
[1754347453743,1e-08,3727.0,3726.9,7.77719851]
[1754347453936,1e-08,3727.0,3726.9,7.79169851]
[1754347454408,1e-08,3727.0,3726.9,7.77719851]
[1754347456225,1e-08,3727.0,3726.9,7.72569851]
[1754347457138,1e-08,3727.0,3726.9,11.84169851]
[1754347463415,1e-08,3727.0,3726.9,3.36990451]
[1754347463416,0.92950001,3727.0,3726.9,3.36990451]
[1754347463660,0.92950001,3727.0,3726.9,6.36990451]
[1754347465635,0.92950001,3727.0,3726.9,3.36990451]
[1754347466034,0.92950001,3727.0,3726.9,2.81779514]
[1754347467363,0.92950001,3727.0,3726.9,2.68419514]
[1754347468545,0.92950001,3727.0,3726.9,2.81779514]
[1754347470745,0.92950001,3727.0,3726.9,2.68419514]
[1754347471070,0.92950001,3727.0,3726.9,2.81779514]
[1754347471565,1e-08,3727.0,3726.9,2.81779514]
[1754347471769,1e-08,3727.0,3726.9,3.38992336]
[1754347471938,1e-08,3727.0,3726.9,3.3699045]
[1754347474667,1e-08,3727.0,3726.9,6.8362045]
[1754347480771,0.002,3727.4,3727.1,2.68305116]
[1754347480772,0.4632,3727.2,3727.1,2.68305116]
[1754347481267,0.4632,3727.2,3727.1,2.81665116]
[1754347481660,0.002,3727.4,3727.3,2.68290719]
[1754347482067,0.002,3727.4,3727.3,2.81650719]
[1754347482557,0.4683,3727.4,3727.3,2.81650719]
[1754347482755,0.4683,3727.4,3727.3,3.36646303]
[1754347483073,0.002,3727.8,3727.7,2.6826193]
[1754347483270,0.002,3727.8,3727.7,2.70262377]
[1754347483471,0.002,3727.8,3727.7,2.83622377]
[1754347483648,0.002,3727.8,3727.7,3.70423973]
[1754347484048,0.4652,3727.8,3727.7,3.68423526]
[1754347484961,0.002,3727.8,3727.7,3.68423526]
[1754347486378,0.002,3728.0,3727.9,2.68247538]
[1754347486759,0.002,3728.0,3727.9,2.81607538]
[1754347486959,0.002,3728.0,3727.9,3.50069644]
[1754347487158,0.002,3728.0,3727.9,3.52069731]
[1754347487359,0.002,3728.0,3727.9,3.98019644]
[1754347487964,0.002,3728.2,3728.1,2.68233148]
[1754347488416,0.002,3728.2,3728.1,2.81593148]
[1754347488600,0.002,3728.2,3728.1,3.48218427]
[1754347489964,0.4377,3728.2,3728.1,3.48218427]
[1754347490272,0.8961,3728.2,3728.1,3.48218427]
[1754347490653,0.4377,3728.2,3728.1,3.48218427]
[1754347491188,0.002,3728.2,3728.1,3.48218427]
[1754347491756,0.4377,3728.6,3728.5,2.68204371]
[1754347491957,0.4377,3728.6,3728.5,2.81564371]
[1754347492562,0.8961,3728.6,3728.5,2.81564371]
[1754347493369,0.002,3728.6,3728.5,2.81564371]
[1754347493972,0.002,3728.6,3728.5,3.36542064]
[1754347494178,0.4377,3728.6,3728.5,3.36542064]
[1754347494707,0.8961,3728.6,3728.5,3.36542064]
[1754347494898,0.8961,3728.6,3728.5,2.81564371]
[1754347495964,0.4377,3728.6,3728.5,2.81564371]
[1754347496502,0.002,3728.6,3728.5,3.29514371]
[1754347496811,1e-08,3728.6,3728.5,6.72984371]
[1754347497881,1e-08,3728.6,3728.5,16.6136342]
[1754347498080,1e-08,3728.6,3728.5,18.95431018]
[1754347499102,1e-08,3728.6,3728.5,8.15631969]
[1754347499400,0.89410001,3728.6,3728.5,5.81564371]
[1754347499906,0.43570001,3728.6,3728.5,5.81564371]
[1754347500469,1e-08,3728.6,3728.5,5.81564371]
[1754347500663,1e-08,3728.6,3728.5,6.29514371]
[1754347500864,1e-08,3728.6,3728.5,9.52204969]
[1754347505727,1e-08,3728.6,3728.5,9.08734969]
[1754347505897,1e-08,3728.6,3728.5,13.19634969]
[1754347506984,1e-08,3728.6,3728.5,13.65474969]
[1754347508681,1e-08,3728.6,3728.5,9.06624969]
[1754347509011,0.002,3729.4,3728.5,9.06624969]
[1754347509012,0.4584,3728.8,3728.7,5.68189985]
[1754347509305,0.4584,3728.8,3728.7,9.79089985]
[1754347509693,0.4584,3728.8,3728.7,9.92449985]
[1754347511086,0.8941,3728.8,3728.7,9.92449985]
[1754347511289,0.002,3729.4,3729.3,2.68146837]
[1754347511784,0.002,3729.4,3729.3,2.81506837]
[1754347511987,0.8961,3729.4,3729.3,2.81506837]
[1754347515586,0.8961,3729.4,3728.2,0.805444]
[1754347515813,1.25183741,3729.3,3728.8,2.68177777]
[1754347516116,1.0277,3729.2,3728.7,2.68189094]
[1754347516309,0.8941,3729.1,3728.7,2.68189094]
[1754347516505,0.9267,3729.0,3728.8,2.68181963]
[1754347516829,0.9267,3728.9,3728.6,0.1336]
[1754347517136,0.9267,3728.9,3728.8,2.68182793]
[1754347517625,0.9267,3728.9,3728.7,2.68187537]
[1754347517791,0.9267,3728.8,3728.7,2.68189985]
[1754347518730,0.9267,3728.8,3728.6,2.81554509]
[1754347518908,4.2416,3729.2,3728.7,2.68189985]
[1754347519230,0.69250725,3729.1,3728.7,2.68189985]
[1754347519517,0.69250725,3729.1,3728.7,2.68186978]
[1754347519822,0.69250725,3729.1,3728.8,2.6818199]
[1754347519823,0.9267,3729.0,3728.8,2.6818199]
[1754347519985,0.69250725,3729.1,3728.7,2.68187273]
[1754347520189,0.9267,3728.9,3728.7,2.68187273]
[1754347520428,0.69250725,3729.1,3728.6,2.81555136]
[1754347520731,0.9267,3728.8,3728.7,2.68189985]
[1754347521191,0.9267,3728.8,3728.6,2.81554508]
[1754347521385,0.4877,3728.7,3728.6,2.81554508]
[1754347521786,0.9267,3728.7,3728.6,2.81554508]
[1754347523324,0.9267,3728.7,3728.5,0.001]
[1754347523490,0.1336,3728.7,3728.5,0.001]
[1754347523808,0.002,3728.8,3728.7,2.68189985]
[1754347524210,0.002,3728.8,3728.7,3.71638827]
[1754347524410,0.002,3728.8,3728.7,4.30078827]
[1754347526719,0.002,3728.8,3728.7,7.30078827]
[1754347527111,1e-08,3728.8,3728.7,7.30078827]
[1754347531320,1e-08,3728.8,3728.7,7.85078827]
[1754347536107,1e-08,3728.8,3728.7,7.95816827]
[1754347537941,1e-08,3729.4,3729.3,2.68146837]
[1754347538249,1e-08,3729.4,3729.3,10.47734588]
[1754347538441,1e-08,3729.4,3729.3,10.95537019]
[1754347538744,1e-08,3729.4,3729.3,11.40617019]
[1754347539635,1e-08,3729.4,3729.3,11.95617019]
[1754347540445,1e-08,3729.4,3729.3,12.06352919]
[1754347542011,1e-08,3729.4,3729.3,7.95752919]
[1754347542326,1e-08,3729.4,3729.3,11.00637019]
[1754347545769,0.35770001,3729.7,3729.6,5.68125268]
[1754347546073,0.79670001,3729.7,3729.6,7.67314842]
[1754347546270,0.79670001,3729.7,3729.6,7.80674842]
[1754347547734,0.002,3729.8,3729.7,5.68118079]
[1754347548135,1e-08,3729.8,3729.7,6.15428079]
[1754347548374,1e-08,3729.8,3729.7,11.38598079]
[1754347548552,1e-08,3729.8,3729.7,9.8318515]
[1754347548879,1e-08,3730.0,3729.9,5.68103702]
[1754347549380,1e-08,3730.2,3730.1,2.68089327]
[1754347549557,1e-08,3730.2,3730.1,9.93845459]
[1754347549755,1e-08,3730.2,3730.1,10.94159327]
[1754347550072,1e-08,3730.2,3730.1,11.92218169]
[1754347550645,1e-08,3730.6,3730.5,6.23060581]
[1754347550844,1e-08,3730.6,3730.5,19.6683963]
[1754347551276,1e-08,3730.6,3730.5,20.5855963]
[1754347551677,1e-08,3730.6,3730.5,20.7191963]
[1754347551978,1e-08,3730.6,3730.5,21.25549812]
[1754347553773,1e-08,3730.6,3730.5,21.45530499]
[1754347553974,1e-08,3730.6,3730.5,17.35130499]
[1754347554142,1e-08,3730.6,3730.5,21.45430499]
[1754347557364,1e-08,3730.6,3730.5,21.00920499]
[1754347558400,0.88910001,3730.6,3730.5,9.91620581]
[1754347558595,1e-08,3730.6,3730.5,9.78260581]
[1754347558785,0.88910001,3730.6,3730.5,9.91620581]
[1754347559392,0.88910001,3730.6,3730.5,2.81420581]
[1754347559799,0.88910001,3730.6,3730.5,5.81420581]
[1754347559998,1e-08,3731.0,3730.9,2.68031842]
[1754347560296,1e-08,3731.0,3730.9,19.68605585]
[1754347560498,1e-08,3731.0,3730.9,19.79970891]
[1754347562000,1e-08,3731.0,3730.9,6.36391842]
[1754347562205,1e-08,3731.0,3730.9,11.33653572]
[1754347562405,1e-08,3731.0,3730.9,10.78653572]
[1754347562712,0.88910001,3731.0,3730.9,2.81391842]
[1754347562922,0.88910001,3731.0,3729.8,0.805038]
[1754347562923,3.56934659,3731.0,3729.8,0.805038]
[1754347563084,0.92260398,3730.9,3729.5,4.101]
[1754347563292,2.6805094,3730.7,3728.5,0.4741]
[1754347563478,0.62834604,3730.6,3729.0,4.101]
[1754347563810,0.1336,3730.4,3730.0,2.68095213]
[1754347564018,0.8891,3730.3,3730.2,2.6808214]
[1754347564220,0.8891,3730.3,3730.2,2.8144214]
[1754347565734,0.1336,3730.9,3730.2,0.1336]
[1754347565895,0.002,3730.6,3730.5,2.68054697]
[1754347566228,0.8911,3730.6,3730.5,2.68054697]
[1754347566972,0.4599,3730.6,3730.5,2.81414697]
[1754347567421,0.002,3730.6,3730.5,2.81414697]
[1754347568632,0.8911,3730.6,3730.5,2.81414697]
[1754347568987,0.4599,3730.6,3730.5,2.81414697]
[1754347570324,0.8911,3730.6,3730.5,2.81414697]
[1754347571691,0.8911,3730.6,3730.5,0.1336]
[1754347571908,0.8911,3730.6,3730.5,2.81420581]
[1754347572102,0.8911,3730.6,3730.5,0.1336]
[1754347572440,0.8911,3730.6,3730.5,2.68060581]
[1754347573700,0.002,3730.6,3730.5,2.68060581]
[1754347574412,0.4599,3730.6,3730.5,2.68060581]
[1754347574590,0.002,3730.6,3730.5,2.68060581]
[1754347574920,0.002,3730.6,3730.5,3.70318825]
[1754347575335,0.002,3730.6,3730.5,4.16724238]
[1754347575498,0.002,3730.6,3730.5,4.30084238]
[1754347575707,0.002,3730.6,3730.5,7.30084238]
[1754347575888,1e-08,3731.0,3730.9,2.68031842]
[1754347576226,1e-08,3731.0,3730.9,6.76640366]
[1754347576396,1e-08,3731.0,3730.9,7.81720366]
[1754347577129,1e-08,3731.4,3731.3,3.23003108]
[1754347577293,1e-08,3731.4,3731.3,6.23003108]
[1754347577490,1e-08,3731.4,3731.3,8.19174587]
[1754347578521,1e-08,3731.4,3731.3,7.25464587]
[1754347578928,1e-08,3731.4,3731.3,7.45593373]
[1754347579225,1e-08,3731.4,3731.3,8.39303373]
[1754347579596,1e-08,3731.4,3731.3,7.92743373]
[1754347580301,1e-08,3731.4,3731.3,6.70464587]
[1754347580501,0.91270001,3731.4,3731.3,6.70464587]
[1754347580708,0.91270001,3731.4,3731.3,5.81363108]
[1754347580908,1e-08,3731.4,3731.3,5.81363108]
[1754347581103,0.91270001,3731.4,3731.3,2.81363108]
[1754347581503,0.91270001,3731.4,3731.3,2.68003108]
[1754347581695,0.91270001,3731.4,3731.0,2.81380209]
[1754347581893,0.9127,3731.3,3730.8,0.1336]
[1754347582131,0.9127,3731.3,3730.5,2.68053862]
[1754347582334,2.6799822,3731.4,3730.7,2.68039752]
[1754347582335,0.1336,3731.0,3730.7,2.68039752]
[1754347582537,0.1336,3731.0,3730.4,0.1336]
[1754347582736,0.9127,3730.9,3730.5,2.68054836]
[1754347582936,0.9127,3730.9,3730.4,0.1336]
[1754347582937,0.9127,3730.8,3730.4,0.1336]
[1754347583125,0.9127,3730.7,3730.5,2.68055226]
[1754347583441,0.9127,3730.6,3730.4,0.1336]
[1754347583626,0.9127,3730.5,3730.3,2.68069092]
[1754347583827,0.9127,3730.4,3730.3,2.68069092]
[1754347584140,1.0463,3730.4,3730.1,0.001]
[1754347584343,0.9127,3730.3,3730.1,0.001]
[1754347584705,0.9127,3730.2,3730.1,2.68186246]
[1754347585224,0.1336,3730.4,3730.1,0.001]
[1754347585538,0.468,3730.6,3730.3,2.68068502]
[1754347585841,0.468,3730.4,3730.3,2.68068502]
[1754347586019,0.9127,3730.4,3730.3,2.68068502]
[1754347587845,0.468,3730.4,3730.3,2.68068502]
[1754347588053,0.1336,3730.7,3730.6,2.68053396]
[1754347588342,0.468,3731.0,3730.8,2.68033783]
[1754347588538,0.468,3731.0,3730.6,2.68053396]
[1754347588737,0.9127,3730.9,3730.7,2.68046083]
[1754347588930,0.1336,3731.1,3730.7,2.68046083]
[1754347589124,0.9127,3730.8,3730.7,2.68046083]
[1754347589513,0.468,3730.8,3730.7,2.68046083]
[1754347590229,0.468,3730.8,3730.3,0.1336]
[1754347590230,0.468,3730.8,3730.6,2.68052481]
[1754347590434,0.9127,3730.7,3730.6,2.68052481]
[1754347591148,0.9127,3730.7,3730.3,0.1336]
[1754347591149,0.468,3730.7,3730.3,0.1336]
[1754347591311,0.1336,3730.8,3730.5,2.68053618]
[1754347591645,0.468,3730.6,3730.5,2.68053618]
[1754347592019,0.1336,3730.8,3730.7,2.68046211]
[1754347592228,0.1336,3731.1,3730.8,2.68037388]
[1754347592415,0.9127,3731.0,3730.7,2.68044183]
[1754347592615,0.468,3730.9,3730.8,2.68038108]
[1754347593447,0.468,3730.9,3730.7,2.68044846]
[1754347593635,0.468,3730.9,3730.8,2.68039026]
[1754347594354,0.1336,3731.1,3730.8,2.68039026]
[1754347594653,0.1336,3731.1,3731.0,2.68024658]
[1754347595312,1e-08,3731.4,3731.2,2.68009712]
[1754347595518,0.1336,3731.3,3731.2,2.68009712]
[1754347595717,1e-08,3731.4,3731.3,2.68003108]
[1754347596812,1e-08,3731.4,3731.2,2.68007278]
[1754347597017,1e-08,3731.4,3731.3,2.68003108]
[1754347600528,1e-08,3731.4,3731.2,2.68007459]
[1754347600861,0.9127,3731.3,3730.9,0.1336]
[1754347601103,0.1336,3731.2,3730.8,2.68032741]
[1754347601256,1.0463,3731.2,3730.8,2.68032741]
[1754347601451,0.9127,3731.1,3730.7,2.68043252]
[1754347601616,0.9127,3731.0,3730.6,2.81410736]
[1754347601821,0.94620398,3730.9,3730.6,2.81410736]
[1754347602029,0.4447,3730.9,3730.6,2.81410736]
[1754347602250,0.468,3730.8,3730.6,2.81410736]
[1754347602769,0.468,3730.7,3730.4,2.68067283]
[1754347602921,0.468,3730.7,3730.6,2.68053396]
[1754347603321,0.1336,3730.8,3730.7,2.68046211]
[1754347603735,0.1336,3731.3,3731.0,2.68020158]
[1754347603923,0.1336,3731.3,3731.1,2.68016906]
[1754347604672,0.6016,3731.3,3730.9,2.68029081]
[1754347604836,0.6016,3731.3,3731.0,2.68023676]
[1754347605023,0.1336,3731.3,3730.7,0.5992]
[1754347605385,0.1336,3731.3,3731.1,2.68012437]
[1754347605527,0.1336,3731.3,3731.1,3.15162437]
[1754347605729,0.1336,3731.3,3731.2,3.15160291]
[1754347606026,1e-08,3731.4,3731.3,2.68003108]
[1754347606564,1e-08,3731.4,3731.3,3.15153108]
[1754347606716,1e-08,3731.4,3731.3,2.68003108]
[1754347607383,0.93630001,3731.4,3730.8,2.68033272]
[1754347607568,1.29792369,3731.3,3730.7,2.6804027]
[1754347607870,0.1336,3731.1,3730.8,2.68038049]
[1754347608040,0.1336,3731.1,3730.9,2.68030982]
[1754347608239,0.4627,3731.0,3730.5,3.31380143]
[1754347608442,0.4627,3730.9,3730.5,2.81420143]
[1754347608696,0.4627,3730.9,3730.8,2.68039026]
[1754347608901,0.1336,3731.1,3730.9,2.68031842]
[1754347609125,0.1336,3731.1,3730.5,0.1336]
[1754347609126,0.4627,3731.0,3730.5,2.81419337]
[1754347609410,0.6072,3731.1,3730.8,2.68034627]
[1754347609612,0.1336,3731.1,3730.9,2.68030787]
[1754347609916,0.1336,3731.1,3730.9,2.68029625]
[1754347610081,0.1336,3731.1,3731.0,2.68024658]
[1754347610486,0.1336,3731.3,3731.0,2.68024658]
[1754347611082,0.1336,3731.3,3730.8,0.4996]
[1754347611363,0.1336,3731.3,3730.9,2.68031842]
[1754347611567,0.1336,3731.3,3731.1,2.68013129]
[1754347611895,0.1336,3731.3,3731.2,2.68010291]
[1754347612501,0.1336,3731.3,3731.0,2.68022158]
[1754347612701,0.1336,3731.3,3731.1,2.68017035]
[1754347613203,0.1336,3731.3,3731.2,2.68010291]
[1754347613775,1e-08,3731.4,3731.3,2.68003108]
[1754347614496,1e-08,3731.4,3731.3,3.17963108]
[1754347614797,1e-08,3731.4,3731.3,4.63718147]
[1754347618069,1e-08,3731.4,3731.3,3.68098147]
[1754347618591,1e-08,3731.4,3731.3,3.31323108]
[1754347618797,1e-08,3731.4,3731.3,3.76983108]
[1754347620099,1e-08,3731.4,3731.3,2.81363108]
[1754347621015,1e-08,3731.4,3731.3,3.31323108]
[1754347621252,0.93630001,3731.4,3731.3,2.68003108]
[1754347621527,1.06990001,3731.4,3730.7,3.1336]
[1754347621733,1.06990001,3731.4,3731.1,2.68015203]
[1754347621895,0.13360001,3731.4,3731.1,2.68015203]
[1754347622092,0.9363,3731.3,3731.1,2.68016127]
[1754347622418,0.4627,3731.2,3731.1,2.68016127]
[1754347622600,0.9363,3731.2,3730.9,2.68026274]
[1754347622795,0.4736,3731.2,3731.0,2.68023686]
[1754347623003,0.4627,3731.1,3731.0,2.68023686]
[1754347623885,0.59630001,3731.4,3730.7,0.1336]
[1754347624117,0.59630001,3731.4,3731.1,2.68012161]
[1754347624322,0.13360001,3731.4,3731.1,2.68012161]
[1754347624622,0.4627,3731.3,3731.1,2.68012161]
[1754347624928,0.13360001,3731.4,3731.2,2.68006656]